fUSD/lending_fUSD_20240612
["ID","MTS","AMOUNT","RATE_DAILY","PERIOD"]
[329200272,1718172652506,-500.0,0.00019315,2]
[329200273,1718172652519,-500.0,0.00019315,2]
[329200274,1718172652531,-500.0,0.00019315,2]
[329200275,1718172652544,-500.0,0.00019315,2]
[329200276,1718172652554,-500.0,0.00019315,2]
[329200277,1718172652565,-864.12,0.00019315,2]
[329200278,1718172652576,-500.0,0.00019315,2]
[329200279,1718172652587,-500.0,0.00019315,2]
[329200280,1718172652597,-512.79,0.00019315,2]
[329200281,1718172652607,-500.0,0.00019315,2]
[329200282,1718172652617,-500.0,0.00019315,2]
[329200283,1718172652628,-500.0,0.00019315,2]
[329200284,1718172652638,-500.0,0.00019315,2]
[329200285,1718172652649,-500.0,0.00019315,2]
[329200286,1718172652659,-500.0,0.00019315,2]
[329200287,1718172652671,-1392.1,0.00019315,2]
[329200288,1718172652681,-3428.39,0.00019315,2]
[329200289,1718172652691,-500.0,0.00019315,2]
[329200290,1718172652701,-558.81,0.00019315,2]
[329200291,1718172652711,-507.04,0.00019315,2]
[329200292,1718172652723,-500.0,0.00019315,2]
[329200293,1718172652733,-500.0,0.00019315,2]
[329200294,1718172652746,-500.0,0.00019315,2]
[329200295,1718172652756,-500.0,0.00019315,2]
[329200296,1718172652767,-537.28,0.00019315,2]
[329200297,1718172652778,-500.0,0.00019315,2]
[329200298,1718172652789,-593.98877535,0.00019315,2]
[329200299,1718172652799,-500.0,0.00019315,2]
[329200300,1718172652810,-500.0,0.00019315,2]
[329200301,1718172652820,-541.81,0.00019315,2]
[329200302,1718172652832,-344.10335399,0.00019315,2]
[329200303,1718172652843,-669.45,0.00019315,2]
[329200304,1718172652854,-500.0,0.00019315,2]
[329200305,1718172652864,-500.0,0.00019315,2]
[329200306,1718172652875,-919.83,0.00019315,2]
[329200307,1718172652885,-500.0,0.00019315,2]
[329200308,1718172652895,-500.0,0.00019315,2]
[329200309,1718172652907,-500.0,0.00019315,2]
[329200310,1718172652919,-513.45,0.00019315,2]
[329200311,1718172652929,-1591.85,0.00019315,2]
[329200312,1718172652947,-500.0,0.00019315,2]
[329200313,1718172652960,-500.0,0.00019315,2]
[329200314,1718172652971,-500.0,0.00019315,2]
[329200315,1718172652982,-500.0,0.00019315,2]
[329200316,1718172652994,-592.43,0.00019315,2]
[329200317,1718172653004,-548.6,0.00019315,2]
[329200318,1718172653014,-500.0,0.00019315,2]
[329200319,1718172653024,-500.0,0.00019315,2]
[329200320,1718172653034,-500.0,0.00019315,2]
[329200321,1718172653044,-500.0,0.00019315,2]
[329200322,1718172653053,-522.65,0.00019315,2]
[329200323,1718172653064,-684.87,0.00019315,2]
[329200324,1718172653074,-500.0,0.00019315,2]
[329200325,1718172653084,-500.0,0.00019315,2]
[329200326,1718172653096,-500.0,0.00019315,2]
[329200327,1718172653109,-818.53,0.00019315,2]
[329200328,1718172653119,-504.37809021,0.00019315,2]
[329200329,1718172653129,-693.08,0.00019315,2]
[329200330,1718172653141,-717.64,0.00019315,2]
[329200331,1718172653151,-500.0,0.00019315,2]
[329200332,1718172653161,-500.0,0.00019315,2]
[329200333,1718172653172,-500.0,0.00019315,2]
[329200334,1718172653182,-503.78,0.00019315,2]
[329200335,1718172653192,-500.0,0.00019315,2]
[329200336,1718172653202,-508.2,0.00019315,2]
[329200337,1718172653213,-1171.25,0.00019315,2]
[329200338,1718172653223,-500.0,0.00019315,2]
[329200339,1718172653233,-500.0,0.00019315,2]
[329200340,1718172653243,-500.0,0.00019315,2]
[329200341,1718172653253,-500.0,0.00019315,2]
[329200342,1718172653263,-688.25,0.00019315,2]
[329200343,1718172653273,-500.0,0.00019315,2]
[329200344,1718172653284,-500.0,0.00019315,2]
[329200345,1718172653294,-330.81730303,0.00019315,2]
[329200346,1718172653304,-617.66,0.00019315,2]
[329200347,1718172653315,-500.0,0.00019315,2]
[329200348,1718172653325,-500.0,0.00019315,2]
[329200349,1718172653335,-500.0,0.00019315,2]
[329200350,1718172653346,-500.0,0.00019315,2]
[329200351,1718172653358,-500.0,0.00019315,2]
[329200352,1718172653368,-500.0,0.00019315,2]
[329200353,1718172653378,-500.0,0.00019315,2]
[329200354,1718172653389,-500.0,0.00019315,2]
[329200355,1718172653399,-500.0,0.00019315,2]
[329200356,1718172653409,-744.57,0.00019315,2]
[329200357,1718172653419,-500.0,0.00019315,2]
[329200358,1718172653430,-500.0,0.00019315,2]
[329200359,1718172653443,-500.0,0.00019315,2]
[329200360,1718172653452,-210.18156122,0.00019315,2]
[329200361,1718172653463,-500.0,0.00019315,2]
[329200362,1718172653475,-662.3,0.00019315,2]
[329200363,1718172653485,-500.0,0.00019315,2]
[329200364,1718172653495,-500.98,0.00019315,2]
[329200365,1718172653506,-500.0,0.00019315,2]
[329200366,1718172653517,-500.0,0.00019315,2]
[329200367,1718172653535,-500.0,0.00019315,2]
[329200368,1718172653549,-500.0,0.00019315,2]
[329200369,1718172653561,-156.35,0.00019315,2]
[329200370,1718172653573,-500.0,0.00019315,2]
[329200371,1718172653585,-568.01,0.00019315,2]
[329200372,1718172653595,-808.36,0.00019315,2]
[329200373,1718172653605,-500.0,0.00019315,2]
[329200374,1718172653616,-500.0,0.00019315,2]
[329200375,1718172653628,-500.0,0.00019315,2]
[329200376,1718172653638,-500.0,0.00019315,2]
[329200377,1718172653649,-500.0,0.00019315,2]
[329200378,1718172653659,-500.0,0.00019315,2]
[329200379,1718172653669,-500.0,0.00019315,2]
[329200380,1718172653680,-500.0,0.00019315,2]
[329200381,1718172653691,-500.0,0.00019315,2]
[329200382,1718172653701,-500.0,0.00019315,2]
[329200383,1718172653714,-500.0,0.00019315,2]
[329200384,1718172653724,-500.0,0.00019315,2]
[329200385,1718172653735,-500.0,0.00019315,2]
[329200386,1718172653746,-579.08,0.00019315,2]
[329200387,1718172653760,-500.0,0.00019315,2]
[329200388,1718172653772,-528.69,0.00019315,2]
[329200389,1718172653785,-772.86,0.00019315,2]
[329200390,1718172653796,-500.0,0.00019315,2]
[329200391,1718172653806,-500.0,0.00019315,2]
[329200392,1718172653816,-500.0,0.00019315,2]
[329200393,1718172653828,-500.0,0.00019315,2]
[329200394,1718172653838,-500.0,0.00019315,2]
[329200395,1718172653849,-500.0,0.00019315,2]
[329200396,1718172653860,-500.0,0.00019315,2]
[329200397,1718172653870,-670.99,0.00019315,2]
[329200398,1718172653881,-500.0,0.00019315,2]
[329200399,1718172653891,-500.0,0.00019315,2]
[329200400,1718172653902,-500.0,0.00019315,2]
[329200401,1718172653912,-500.0,0.00019315,2]
[329200402,1718172653923,-500.0,0.00019315,2]
[329200403,1718172653945,-500.0,0.00019315,2]
[329200404,1718172653961,-606.81,0.00019315,2]
[329200405,1718172653972,-500.0,0.00019315,2]
[329200406,1718172653986,-794.38,0.00019315,2]
[329200407,1718172653998,-500.0,0.00019315,2]
[329200408,1718172654008,-500.0,0.00019315,2]
[329200409,1718172654020,-500.0,0.00019315,2]
[329200410,1718172654033,-500.0,0.00019315,2]
[329200411,1718172654044,-900.71,0.00019315,2]
[329200412,1718172654058,-920.71,0.00019315,2]
[329200413,1718172654072,-500.0,0.00019315,2]
[329200414,1718172654085,-500.0,0.00019315,2]
[329200415,1718172654100,-501.24697068,0.00019315,2]
[329200416,1718172654112,-500.0,0.00019315,2]
[329200417,1718172654124,-500.0,0.00019315,2]
[329200418,1718172654138,-500.0,0.00019315,2]
[329200419,1718172654151,-612.65,0.00019315,2]
[329200420,1718172654163,-1315.45,0.00019315,2]
[329200421,1718172654173,-500.0,0.00019315,2]
[329200422,1718172654187,-500.0,0.00019315,2]
[329200423,1718172654198,-500.0,0.00019315,2]
[329200424,1718172654210,-500.0,0.00019315,2]
[329200425,1718172654222,-500.0,0.00019315,2]
[329200426,1718172654232,-500.0,0.00019315,2]
[329200427,1718172654244,-723.31,0.00019315,2]
[329200428,1718172654257,-1932.93,0.00019315,2]
[329200429,1718172654268,-550.91,0.00019315,2]
[329200430,1718172654279,-500.0,0.00019315,2]
[329200431,1718172654290,-931.13,0.00019315,2]
[329200432,1718172654301,-720.75,0.00019315,2]
[329200433,1718172654312,-500.0,0.00019315,2]
[329200434,1718172654322,-500.0,0.00019315,2]
[329200435,1718172654334,-821.26,0.00019315,2]
[329200436,1718172654346,-500.0,0.00019315,2]
[329200437,1718172654358,-500.0,0.00019315,2]
[329200438,1718172654368,-500.0,0.00019315,2]
[329200439,1718172654380,-772.42,0.00019315,2]
[329200440,1718172654391,-505.45,0.00019315,2]
[329200441,1718172654402,-500.0,0.00019315,2]
[329200442,1718172654413,-3463.58,0.00019315,2]
[329200443,1718172654427,-500.0,0.00019315,2]
[329200444,1718172654449,-500.0,0.00019315,2]
[329200445,1718172654462,-1748.66,0.00019315,2]
[329200446,1718172654475,-500.0,0.00019315,2]
[329200447,1718172654487,-1109.0,0.00019315,2]
[329200448,1718172654500,-500.0,0.00019315,2]
[329200449,1718172654510,-3608.12,0.00019315,2]
[329200450,1718172654523,-500.0,0.00019315,2]
[329200451,1718172654536,-500.0,0.00019315,2]
[329200452,1718172654546,-5929.13,0.00019315,2]
[329200453,1718172654560,-500.0,0.00019315,2]
[329200454,1718172654570,-653.09,0.00019315,2]
[329200455,1718172654581,-1398.58,0.00019315,2]
[329200456,1718172654591,-688.16,0.00019315,2]
[329200457,1718172654602,-500.0,0.00019315,2]
[329200458,1718172654613,-956.32,0.00019315,2]
[329200459,1718172654623,-3732.34,0.00019315,2]
[329200460,1718172654634,-1784.93,0.00019315,2]
[329200461,1718172654645,-548.43,0.00019315,2]
[329200462,1718172654656,-993.77,0.00019315,2]
[329200463,1718172654667,-500.0,0.00019315,2]
[329200464,1718172654678,-13046.04,0.00019315,2]
[329200465,1718172654689,-500.0,0.00019315,2]
[329200466,1718172654700,-844.37,0.00019315,2]
[329200467,1718172654710,-513.4,0.00019315,2]
[329200468,1718172654721,-500.0,0.00019315,2]
[329200469,1718172654733,-1418.31,0.00019315,2]
[329200470,1718172654748,-2029.17,0.00019315,2]
[329200471,1718172654759,-500.0,0.00019315,2]
[329200472,1718172654771,-21373.53,0.00019315,2]
[329200473,1718172654790,-751.57,0.00019315,2]
[329200474,1718172654802,-500.0,0.00019315,2]
[329200475,1718172654813,-500.0,0.00019315,2]
[329200476,1718172654824,-500.0,0.00019315,2]
[329200477,1718172654836,-500.0,0.00019315,2]
[329200478,1718172654847,-856.62,0.00019315,2]
[329200479,1718172654858,-500.0,0.00019315,2]
[329200480,1718172654874,-500.0,0.00019315,2]
[329200481,1718172654890,-714.51,0.00019315,2]
[329200482,1718172654901,-1115.7,0.00019315,2]
[329200483,1718172654919,-1635.78,0.00019315,2]
[329200484,1718172654933,-500.0,0.00019315,2]
[329200485,1718172654964,-515.8,0.00019315,2]
[329200486,1718172654976,-799.11,0.00019315,2]
[329200487,1718172654988,-814.82,0.00019315,2]
[329200488,1718172654999,-1262.68,0.00019315,2]
[329200489,1718172655015,-782.24,0.00019315,2]
[329200490,1718172655025,-500.0,0.00019315,2]
[329200491,1718172655037,-5423.8,0.00019315,2]
[329200492,1718172655056,-500.0,0.00019315,2]
[329200493,1718172655069,-1049.58,0.00019315,2]
[329200494,1718172655079,-500.0,0.00019315,2]
[329200495,1718172655089,-500.0,0.00019315,2]
[329200496,1718172655102,-604.82,0.00019315,2]
[329200497,1718172655113,-1105.65,0.00019315,2]
[329200498,1718172655123,-2396.27,0.00019315,2]
[329200499,1718172655134,-791.12,0.00019315,2]
[329200500,1718172655146,-500.0,0.00019315,2]
[329200501,1718172655158,-3082.01,0.00019315,2]
[329200502,1718172655170,-766.4,0.00019315,2]
[329200503,1718172655180,-500.0,0.00019315,2]
[329200504,1718172655195,-1182.54,0.00019315,2]
[329200505,1718172655220,-1243.99,0.00019315,2]
[329200506,1718172655230,-6638.62,0.00019315,2]
[329200507,1718172655242,-500.0,0.00019315,2]
[329200508,1718172655253,-500.0,0.00019315,2]
[329200509,1718172655264,-500.0,0.00019315,2]
[329200510,1718172655275,-4737.15,0.00019315,2]
[329200511,1718172655287,-704.57,0.00019315,2]
[329200512,1718172655298,-730.58,0.00019315,2]
[329200513,1718172655309,-500.0,0.00019315,2]
[329200514,1718172655319,-3301.95,0.00019315,2]
[329200515,1718172655330,-2526.82,0.00019315,2]
[329200516,1718172655340,-770.71,0.00019315,2]
[329200517,1718172655350,-580.63,0.00019315,2]
[329200518,1718172655362,-1858.92,0.00019315,2]
[329200519,1718172655373,-772.85,0.00019315,2]
[329200520,1718172655384,-598.53,0.00019315,2]
[329200521,1718172655395,-2407.57,0.00019315,2]
[329200522,1718172655405,-500.0,0.00019315,2]
[329200523,1718172655416,-1884.19,0.00019315,2]
[329200524,1718172655426,-1309.62,0.00019315,2]
[329200525,1718172655443,-945.42,0.00019315,2]
[329200526,1718172655453,-2337.14,0.00019315,2]
[329200527,1718172655464,-500.0,0.00019315,2]
[329200528,1718172655475,-1789.28,0.00019315,2]
[329200529,1718172655485,-500.0,0.00019315,2]
[329200530,1718172655496,-500.0,0.00019315,2]
[329200531,1718172655507,-501.61,0.00019315,2]
[329200532,1718172655518,-1724.81,0.00019315,2]
[329200533,1718172655530,-2653.04,0.00019315,2]
[329200534,1718172655542,-9079.84,0.00019315,2]
[329200535,1718172655554,-500.0,0.00019315,2]
[329200536,1718172655565,-1047.01,0.00019315,2]
[329200537,1718172655575,-1251.11,0.00019315,2]
[329200538,1718172655586,-500.0,0.00019315,2]
[329200539,1718172655598,-500.0,0.00019315,2]
[329200540,1718172655608,-500.0,0.00019315,2]
[329200541,1718172655619,-1754.04,0.00019315,2]
[329200542,1718172655629,-704.78,0.00019315,2]
[329200543,1718172655640,-837.5,0.00019315,2]
[329200544,1718172655650,-2661.61,0.00019315,2]
[329200545,1718172655661,-3201.88,0.00019315,2]
[329200546,1718172655672,-2564.58,0.00019315,2]
[329200547,1718172655682,-500.0,0.00019315,2]
[329200548,1718172655694,-1869.12,0.00019315,2]
[329200549,1718172655704,-500.0,0.00019315,2]
[329200550,1718172655714,-500.0,0.00019315,2]
[329200551,1718172655725,-653.78,0.00019315,2]
[329200552,1718172655736,-798.61,0.00019315,2]
[329200553,1718172655746,-500.0,0.00019315,2]
[329200554,1718172655757,-2502.6,0.00019315,2]
[329200555,1718172655767,-3425.59,0.00019315,2]
[329200556,1718172655779,-942.69,0.00019315,2]
[329200557,1718172655791,-2465.38,0.00019315,2]
[329200558,1718172655802,-500.0,0.00019315,2]
[329200559,1718172655812,-1844.25,0.00019315,2]
[329200560,1718172655823,-1565.56,0.00019315,2]
[329200561,1718172655834,-827.36,0.00019315,2]
[329200562,1718172655845,-667.01,0.00019315,2]
[329200563,1718172655856,-4374.41,0.00019315,2]
[329200564,1718172655868,-500.0,0.00019315,2]
[329200565,1718172655879,-500.0,0.00019315,2]
[329200566,1718172655890,-1534.36,0.00019315,2]
[329200567,1718172655900,-500.0,0.00019315,2]
[329200568,1718172655911,-1032.16,0.00019315,2]
[329200569,1718172655922,-1949.9,0.00019315,2]
[329200570,1718172655939,-500.0,0.00019315,2]
[329200571,1718172655969,-500.0,0.00019315,2]
[329200572,1718172655980,-506.56540591,0.00019315,2]
[329200573,1718172655991,-1836.66,0.00019315,2]
[329200574,1718172656002,-2202.09,0.00019315,2]
[329200575,1718172656012,-1415.98,0.00019315,2]
[329200576,1718172656023,-500.0,0.00019315,2]
[329200577,1718172656034,-871.6,0.00019315,2]
[329200578,1718172656044,-1901.73,0.00019315,2]
[329200579,1718172656055,-1563.47,0.00019315,2]
[329200580,1718172656066,-7879.33,0.00019315,2]
[329200581,1718172656077,-500.0,0.00019315,2]
[329200582,1718172656087,-813.99,0.00019315,2]
[329200583,1718172656097,-846.85,0.00019315,2]
[329200584,1718172656108,-641.72,0.00019315,2]
[329200585,1718172656119,-2016.93,0.00019315,2]
[329200586,1718172656130,-821.43,0.00019315,2]
[329200587,1718172656141,-4026.27,0.00019315,2]
[329200588,1718172656151,-3800.99,0.00019315,2]
[329200589,1718172656162,-500.0,0.00019315,2]
[329200590,1718172656172,-570.19,0.00019315,2]
[329200591,1718172656182,-1170.63,0.00019315,2]
[329200592,1718172656193,-821.51,0.00019315,2]
[329200593,1718172656203,-500.0,0.00019315,2]
[329200594,1718172656216,-651.05,0.00019315,2]
[329200595,1718172656226,-500.0,0.00019315,2]
[329200596,1718172656238,-652.61,0.00019315,2]
[329200597,1718172656250,-500.0,0.00019315,2]
[329200598,1718172656267,-500.0,0.00019315,2]
[329200599,1718172656292,-2049.1,0.00019315,2]
[329200600,1718172656314,-500.0,0.00019315,2]
[329200601,1718172656329,-1144.0,0.00019315,2]
[329200602,1718172656341,-2269.84,0.00019315,2]
[329200603,1718172656365,-1360.53,0.00019315,2]
[329200604,1718172656383,-500.0,0.00019315,2]
[329200605,1718172656408,-832.39,0.00019315,2]
[329200606,1718172656432,-500.0,0.00019315,2]
[329200607,1718172656456,-520.49,0.00019315,2]
[329200608,1718172656470,-755.75,0.00019315,2]
[329200609,1718172656489,-3674.26,0.00019315,2]
[329200610,1718172656502,-1835.28,0.00019315,2]
[329200611,1718172656524,-500.0,0.00019315,2]
[329200612,1718172656535,-500.0,0.00019315,2]
[329200613,1718172656545,-2214.9,0.00019315,2]
[329200614,1718172656556,-531.6,0.00019315,2]
[329200615,1718172656565,-500.0,0.00019315,2]
[329200616,1718172656576,-1701.31,0.00019315,2]
[329200617,1718172656586,-500.0,0.00019315,2]
[329200618,1718172656596,-500.0,0.00019315,2]
[329200619,1718172656606,-895.48,0.00019315,2]
[329200620,1718172656616,-2548.85,0.00019315,2]
[329200621,1718172656627,-500.0,0.00019315,2]
[329200622,1718172656638,-606.81,0.00019315,2]
[329200623,1718172656648,-500.0,0.00019315,2]
[329200624,1718172656658,-2785.98,0.00019315,2]
[329200625,1718172656668,-1916.57,0.00019315,2]
[329200626,1718172656678,-500.0,0.00019315,2]
[329200627,1718172656689,-500.0,0.00019315,2]
[329200628,1718172656699,-777.65,0.00019315,2]
[329200629,1718172656709,-1219.41,0.00019315,2]
[329200630,1718172656719,-500.0,0.00019315,2]
[329200631,1718172656730,-2838.41,0.00019315,2]
[329200632,1718172656740,-1597.78,0.00019315,2]
[329200633,1718172656750,-1174.84,0.00019315,2]
[329200634,1718172656761,-500.0,0.00019315,2]
[329200635,1718172656771,-821.51,0.00019315,2]
[329200636,1718172656782,-2023.99,0.00019315,2]
[329200637,1718172656793,-591.3,0.00019315,2]
[329200638,1718172656804,-500.0,0.00019315,2]
[329200639,1718172656815,-1684.43,0.00019315,2]
[329200640,1718172656826,-1075.05,0.00019315,2]
[329200641,1718172656836,-1052.0,0.00019315,2]
[329200642,1718172656852,-500.0,0.00019315,2]
[329200643,1718172656868,-500.0,0.00019315,2]
[329200644,1718172656882,-539.48,0.00019315,2]
[329200645,1718172656964,-687.47,0.00019315,2]
[329200646,1718172657006,-500.0,0.00019315,2]
[329200647,1718172657020,-2117.0,0.00019315,2]
[329200648,1718172657035,-2548.95,0.00019315,2]
[329200649,1718172657050,-500.0,0.00019315,2]
[329200650,1718172657063,-1166.91,0.00019315,2]
[329200651,1718172657074,-1519.78,0.00019315,2]
[329200652,1718172657088,-500.0,0.00019315,2]
[329200653,1718172657108,-500.0,0.00019315,2]
[329200654,1718172657120,-500.0,0.00019315,2]
[329200655,1718172657135,-742.77,0.00019315,2]
[329200656,1718172657146,-500.0,0.00019315,2]
[329200657,1718172657162,-1272.83,0.00019315,2]
[329200658,1718172657177,-2839.83,0.00019315,2]
[329200659,1718172657197,-854.32,0.00019315,2]
[329200660,1718172657212,-1205.57,0.00019315,2]
[329200661,1718172657227,-500.0,0.00019315,2]
[329200662,1718172657239,-500.0,0.00019315,2]
[329200663,1718172657251,-500.0,0.00019315,2]
[329200664,1718172657263,-540.49,0.00019315,2]
[329200665,1718172657274,-543.2,0.00019315,2]
[329200666,1718172657284,-500.0,0.00019315,2]
[329200667,1718172657294,-2891.09,0.00019315,2]
[329200668,1718172657305,-1438.69,0.00019315,2]
[329200669,1718172657315,-3609.726,0.00019325,2]
[329200670,1718172657326,-3656.752,0.00019325,2]
[329200671,1718172657337,-16950.88947314,0.00019352,2]
[329200672,1718172657348,-167.75806264,0.00019352,2]
[329200673,1718172657360,-201.0,0.000194,2]
[329200674,1718172657371,-154.20198686,0.000194,2]
[329200675,1718172657382,-1137.46280669,0.000194,2]
[329200676,1718172657397,-1840.83,0.00019438,2]
[329200677,1718172657408,-500.0,0.00019452,2]
[329200678,1718172657419,-500.0,0.00019452,2]
[329200679,1718172657430,-500.0,0.00019452,2]
[329200680,1718172657445,-500.0,0.00019452,2]
[329200681,1718172657457,-500.0,0.00019452,2]
[329200682,1718172657469,-500.0,0.00019452,2]
[329200683,1718172657481,-500.0,0.00019452,2]
[329200684,1718172657493,-500.0,0.00019452,2]
[329200685,1718172657505,-500.0,0.00019452,2]
[329200686,1718172657518,-500.0,0.00019452,2]
[329200687,1718172657529,-500.0,0.00019452,2]
[329200688,1718172657541,-500.0,0.00019452,2]
[329200689,1718172657551,-500.0,0.00019452,2]
[329200690,1718172657563,-500.0,0.00019452,2]
[329200691,1718172657573,-500.0,0.00019452,2]
[329200692,1718172657584,-500.0,0.00019452,2]
[329200693,1718172657594,-500.0,0.00019452,2]
[329200694,1718172657605,-500.0,0.00019452,2]
[329200695,1718172657617,-500.0,0.00019452,2]
[329200696,1718172657627,-408.97268664,0.00019452,2]
[329200697,1718172657637,-500.0,0.00019452,2]
[329200698,1718172657647,-331.33452477,0.00019452,2]
[329200699,1718172657658,-500.0,0.00019452,2]
[329200700,1718172657668,-514.93,0.00019452,2]
[329200701,1718172657679,-500.0,0.00019452,2]
[329200702,1718172657690,-500.0,0.00019452,2]
[329200703,1718172657700,-500.0,0.00019452,2]
[329200704,1718172657710,-500.0,0.00019452,2]
[329200705,1718172657720,-500.0,0.00019452,2]
[329200706,1718172657730,-500.0,0.00019452,2]
[329200707,1718172657741,-884.4,0.00019452,2]
[329200708,1718172657752,-500.0,0.00019452,2]
[329200709,1718172657762,-500.0,0.00019452,2]
[329200710,1718172657772,-500.0,0.00019452,2]
[329200711,1718172657783,-500.0,0.00019452,2]
[329200712,1718172657794,-500.0,0.00019452,2]
[329200713,1718172657805,-500.0,0.00019452,2]
[329200714,1718172657824,-496.58749475,0.00019452,2]
[329200715,1718172657847,-151.0,0.00019452,2]
[329200716,1718172657868,-500.0,0.00019452,2]
[329200717,1718172657880,-691.31,0.00019452,2]
[329200718,1718172657897,-500.0,0.00019452,2]
[329200719,1718172657907,-151.0,0.00019452,2]
[329200720,1718172657920,-500.0,0.00019452,2]
[329200721,1718172657935,-500.0,0.00019452,2]
[329200722,1718172657965,-500.0,0.00019452,2]
[329200723,1718172657976,-500.0,0.00019452,2]
[329200724,1718172657988,-500.0,0.00019452,2]
[329200725,1718172658002,-500.0,0.00019452,2]
[329200726,1718172658013,-500.0,0.00019452,2]
[329200727,1718172658024,-500.0,0.00019452,2]
[329200728,1718172658044,-500.0,0.00019452,2]
[329200729,1718172658062,-500.0,0.00019452,2]
[329200730,1718172658073,-500.0,0.00019452,2]
[329200731,1718172658084,-500.0,0.00019452,2]
[329200732,1718172658094,-500.0,0.00019452,2]
[329200733,1718172658105,-500.0,0.00019452,2]
[329200734,1718172658116,-500.0,0.00019452,2]
[329200735,1718172658131,-500.0,0.00019452,2]
[329200736,1718172658141,-500.0,0.00019452,2]
[329200737,1718172658152,-500.0,0.00019452,2]
[329200738,1718172658162,-500.0,0.00019452,2]
[329200739,1718172658172,-500.0,0.00019452,2]
[329200740,1718172658184,-500.0,0.00019452,2]
[329200741,1718172658195,-500.0,0.00019452,2]
[329200742,1718172658206,-500.0,0.00019452,2]
[329200743,1718172658217,-500.0,0.00019452,2]
[329200744,1718172658228,-500.0,0.00019452,2]
[329200745,1718172658239,-500.0,0.00019452,2]
[329200746,1718172658250,-500.0,0.00019452,2]
[329200747,1718172658260,-500.0,0.00019452,2]
[329200748,1718172658271,-500.0,0.00019452,2]
[329200749,1718172658282,-500.0,0.00019452,2]
[329200750,1718172658292,-151.0,0.00019452,2]
[329200751,1718172658303,-500.0,0.00019452,2]
[329200752,1718172658314,-500.0,0.00019452,2]
[329200753,1718172658325,-500.0,0.00019452,2]
[329200754,1718172658336,-500.0,0.00019452,2]
[329200755,1718172658346,-500.0,0.00019452,2]
[329200756,1718172658356,-500.0,0.00019452,2]
[329200757,1718172658369,-677.66,0.00019452,2]
[329200758,1718172658379,-265.10887655,0.00019452,2]
[329200759,1718172658389,-500.0,0.00019452,2]
[329200760,1718172658399,-500.0,0.00019452,2]
[329200761,1718172658409,-500.0,0.00019452,2]
[329200762,1718172658420,-500.0,0.00019452,2]
[329200763,1718172658430,-864.12,0.00019452,2]
[329200764,1718172658443,-500.0,0.00019452,2]
[329200765,1718172658452,-500.0,0.00019452,2]
[329200766,1718172658462,-512.79,0.00019452,2]
[329200767,1718172658472,-500.0,0.00019452,2]
[329200768,1718172658483,-500.0,0.00019452,2]
[329200769,1718172658493,-500.0,0.00019452,2]
[329200770,1718172658503,-500.0,0.00019452,2]
[329200771,1718172658515,-500.0,0.00019452,2]